[Event "Titled Tuesday Blitz August 08 Early 2023"]
[White "Sharavdorj, Dashzegve"]
[Black "Devaev, Alexander"]
[WhiteFideId "4900340"]
[BlackFideId "4169395"]
[WhiteElo "2636"]
[BlackElo "2444"]
[Result "0-1"]
[Round "4"]
[TimeControl "180+1"]
[Date "2023.08.08"]
[WhiteClock "0:00:00"]
[BlackClock "0:00:11"]
[Board "110"]

1. d4 {[%clk 0:03:00]}  Nf6 {[%clk 0:02:54]} 2. c4 {[%clk 0:02:59]}  e6 {[%clk 0:02:51]} 3. Nc3 {[%clk 0:02:58]}  Bb4 {[%clk 0:02:51]} 4. e3 {[%clk 0:02:58]}  c5 {[%clk 0:02:51]} 5. Bd3 {[%clk 0:02:57]}  cxd4 {[%clk 0:02:52]} 6. exd4 {[%clk 0:02:56]}  d5 {[%clk 0:02:52]} 7. Nf3 {[%clk 0:02:56]}  dxc4 {[%clk 0:02:51]} 8. Bxc4 {[%clk 0:02:55]}  Nc6 {[%clk 0:02:52]} 9. O-O {[%clk 0:02:55]}  O-O {[%clk 0:02:52]} 10. a3 {[%clk 0:02:54]}  Bxc3 {[%clk 0:02:51]} 11. bxc3 {[%clk 0:02:54]}  b6 {[%clk 0:02:52]} 12. Bd3 {[%clk 0:02:53]}  Bb7 {[%clk 0:02:53]} 13. Bg5 {[%clk 0:02:53]}  Ne7 {[%clk 0:02:53]} 14. Ne5 {[%clk 0:02:50]}  Qd6 {[%clk 0:02:47]} 15. Bxf6 {[%clk 0:02:48]}  gxf6 {[%clk 0:02:46]} 16. Qh5 {[%clk 0:02:40]}  Ng6 {[%clk 0:02:23]} 17. Ng4 {[%clk 0:02:38]}  Qf4 {[%clk 0:02:11]} 18. Rae1 {[%clk 0:02:12]}  Qg5 {[%clk 0:01:47]} 19. Qxg5 {[%clk 0:01:57]}  fxg5 {[%clk 0:01:47]} 20. Ne5 {[%clk 0:01:48]}  Rac8 {[%clk 0:01:35]} 21. c4 {[%clk 0:01:46]}  Rfd8 {[%clk 0:01:31]} 22. Bxg6 {[%clk 0:01:45]}  hxg6 {[%clk 0:01:29]} 23. Rd1 {[%clk 0:01:42]}  Rd6 {[%clk 0:01:19]} 24. f4 {[%clk 0:01:42]}  gxf4 {[%clk 0:00:31]} 25. Rxf4 {[%clk 0:01:40]}  Rc7 {[%clk 0:00:31]} 26. Rdf1 {[%clk 0:01:39]}  f5 {[%clk 0:00:28]} 27. g4 {[%clk 0:01:33]}  Be4 {[%clk 0:00:27]} 28. h4 {[%clk 0:01:27]}  Rxd4 {[%clk 0:00:21]} 29. gxf5 {[%clk 0:01:24]}  gxf5 {[%clk 0:00:20]} 30. Kf2 {[%clk 0:01:23]}  Rg7 {[%clk 0:00:20]} 31. Ke2 {[%clk 0:01:13]}  Rg2+ {[%clk 0:00:17]} 32. R1f2 {[%clk 0:01:12]}  Rxf2+ {[%clk 0:00:17]} 33. Rxf2 {[%clk 0:01:10]}  Rd8 {[%clk 0:00:14]} 34. Rf1 {[%clk 0:01:08]}  Kg7 {[%clk 0:00:15]} 35. Ke3 {[%clk 0:01:07]}  Kf6 {[%clk 0:00:15]} 36. Kf4 {[%clk 0:00:55]}  Rd2 {[%clk 0:00:14]} 37. Rg1 {[%clk 0:00:54]}  Rf2+ {[%clk 0:00:13]} 38. Ke3 {[%clk 0:00:53]}  Rh2 {[%clk 0:00:14]} 39. Kf4 {[%clk 0:00:52]}  Rxh4+ {[%clk 0:00:14]} 40. Ke3 {[%clk 0:00:52]}  Kxe5 {[%clk 0:00:14]} 41. Rg7 {[%clk 0:00:50]}  Rh3+ {[%clk 0:00:14]} 42. Kf2 {[%clk 0:00:50]}  Rxa3 {[%clk 0:00:15]} 43. Rc7 {[%clk 0:00:47]}  Kf4 {[%clk 0:00:14]} 44. c5 {[%clk 0:00:46]}  bxc5 {[%clk 0:00:14]} 45. Rxc5 {[%clk 0:00:45]}  e5 {[%clk 0:00:15]} 46. Rc1 {[%clk 0:00:43]}  Ra2+ {[%clk 0:00:15]} 47. Ke1 {[%clk 0:00:43]}  Rc2 {[%clk 0:00:14]} 48. Ra1 {[%clk 0:00:41]}  Ke3 {[%clk 0:00:14]} 49. Kf1 {[%clk 0:00:40]}  Bd3+ {[%clk 0:00:14]} 50. Kg1 {[%clk 0:00:40]}  a6 {[%clk 0:00:15]} 51. Ra5 {[%clk 0:00:35]}  Kf4 {[%clk 0:00:09]} 52. Ra3 {[%clk 0:00:32]}  e4 {[%clk 0:00:09]} 53. Kh1 {[%clk 0:00:31]}  Ke3 {[%clk 0:00:10]} 54. Kg1 {[%clk 0:00:30]}  f4 {[%clk 0:00:10]} 55. Ra1 {[%clk 0:00:30]}  Rb2 {[%clk 0:00:10]} 56. Re1+ {[%clk 0:00:30]}  Kf3 {[%clk 0:00:11]} 57. Rc1 {[%clk 0:00:28]}  Rb1 {[%clk 0:00:11]} 58. Kh2 {[%clk 0:00:00]}  Rxc1 {[%clk 0:00:11]} 0-1


[Site "https://www.chess.com"]

[Event "Titled Tuesday Blitz August 08 Early 2023"]
[White "Mika, Tomasz"]
[Black "HamedWafa4"]
[WhiteFideId "1132970"]
[WhiteElo "2411"]
[BlackElo "2630"]
[Result "1-0"]
[Round "4"]
[TimeControl "180+1"]
[Date "2023.08.08"]
[WhiteClock "0:00:04"]
[BlackClock "0:00:01"]
[Board "112"]

1. e4 {[%clk 0:03:00]}  e5 {[%clk 0:02:55]} 2. Nf3 {[%clk 0:03:00]}  Nc6 {[%clk 0:02:41]} 3. d4 {[%clk 0:02:59]}  exd4 {[%clk 0:02:41]} 4. Nxd4 {[%clk 0:03:00]}  Bc5 {[%clk 0:02:39]} 5. Be3 {[%clk 0:02:59]}  Bxd4 {[%clk 0:02:32]} 6. Bxd4 {[%clk 0:02:58]}  Nxd4 {[%clk 0:02:33]} 7. Qxd4 {[%clk 0:02:58]}  Qf6 {[%clk 0:02:34]} 8. Qxf6 {[%clk 0:02:54]}  Nxf6 {[%clk 0:02:35]} 9. Nc3 {[%clk 0:02:54]}  d6 {[%clk 0:02:33]} 10. h3 {[%clk 0:02:54]}  Bd7 {[%clk 0:02:29]} 11. Bd3 {[%clk 0:02:52]}  Bc6 {[%clk 0:02:28]} 12. Kd2 {[%clk 0:02:51]}  O-O-O {[%clk 0:02:27]} 13. Rae1 {[%clk 0:02:49]}  Rhe8 {[%clk 0:02:28]} 14. f4 {[%clk 0:02:47]}  Nh5 {[%clk 0:02:12]} 15. Rhf1 {[%clk 0:02:44]}  f5 {[%clk 0:02:05]} 16. g4 {[%clk 0:02:30]}  Ng3 {[%clk 0:02:02]} 17. gxf5 {[%clk 0:02:19]}  Nxf1+ {[%clk 0:02:00]} 18. Rxf1 {[%clk 0:02:20]}  Rd7 {[%clk 0:01:47]} 19. b4 {[%clk 0:02:16]}  a6 {[%clk 0:01:45]} 20. a4 {[%clk 0:02:16]}  Rf7 {[%clk 0:01:38]} 21. b5 {[%clk 0:02:13]}  axb5 {[%clk 0:01:39]} 22. axb5 {[%clk 0:02:13]}  Bd7 {[%clk 0:01:39]} 23. Ra1 {[%clk 0:02:12]}  Kb8 {[%clk 0:01:38]} 24. b6 {[%clk 0:01:51]}  cxb6 {[%clk 0:01:33]} 25. Bc4 {[%clk 0:01:50]}  Rf6 {[%clk 0:01:21]} 26. Nd5 {[%clk 0:01:47]}  Rh6 {[%clk 0:01:21]} 27. Nxb6 {[%clk 0:01:47]}  Bc6 {[%clk 0:01:22]} 28. Be6 {[%clk 0:01:15]}  Rxh3 {[%clk 0:01:15]} 29. Ra8+ {[%clk 0:01:14]}  Kc7 {[%clk 0:01:15]} 30. Nd5+ {[%clk 0:01:10]}  Bxd5 {[%clk 0:01:15]} 31. Rxe8 {[%clk 0:01:10]}  Bxe4 {[%clk 0:01:15]} 32. f6 {[%clk 0:01:03]}  Rh2+ {[%clk 0:00:49]} 33. Ke3 {[%clk 0:01:02]}  gxf6 {[%clk 0:00:32]} 34. Kxe4 {[%clk 0:01:02]}  Kb6 {[%clk 0:00:31]} 35. Rc8 {[%clk 0:00:56]}  h5 {[%clk 0:00:27]} 36. Kf5 {[%clk 0:00:50]}  Rf2 {[%clk 0:00:27]} 37. Bd5 {[%clk 0:00:48]}  h4 {[%clk 0:00:24]} 38. c4 {[%clk 0:00:39]}  h3 {[%clk 0:00:24]} 39. Rh8 {[%clk 0:00:39]}  h2 {[%clk 0:00:24]} 40. Kg4 {[%clk 0:00:34]}  Kc5 {[%clk 0:00:19]} 41. Kg3 {[%clk 0:00:32]}  Rd2 {[%clk 0:00:19]} 42. Be6 {[%clk 0:00:22]}  Re2 {[%clk 0:00:08]} 43. f5 {[%clk 0:00:20]}  b5 {[%clk 0:00:08]} 44. cxb5 {[%clk 0:00:17]}  Kxb5 {[%clk 0:00:08]} 45. Rxh2 {[%clk 0:00:17]}  Re3+ {[%clk 0:00:09]} 46. Kf4 {[%clk 0:00:16]}  Re1 {[%clk 0:00:08]} 47. Rh6 {[%clk 0:00:16]}  Rf1+ {[%clk 0:00:09]} 48. Ke3 {[%clk 0:00:16]}  Kc5 {[%clk 0:00:08]} 49. Rxf6 {[%clk 0:00:16]}  d5 {[%clk 0:00:09]} 50. Rf8 {[%clk 0:00:16]}  d4+ {[%clk 0:00:09]} 51. Ke2 {[%clk 0:00:16]}  Rf4 {[%clk 0:00:09]} 52. Rc8+ {[%clk 0:00:16]}  Kd6 {[%clk 0:00:10]} 53. Kd3 {[%clk 0:00:15]}  Ke5 {[%clk 0:00:10]} 54. Rc5+ {[%clk 0:00:14]}  Kf6 {[%clk 0:00:10]} 55. Rd5 {[%clk 0:00:14]}  Rf3+ {[%clk 0:00:10]} 56. Kxd4 {[%clk 0:00:13]}  Rf4+ {[%clk 0:00:11]} 57. Kd3 {[%clk 0:00:12]}  Rh4 {[%clk 0:00:11]} 58. Rd4 {[%clk 0:00:12]}  Rh3+ {[%clk 0:00:12]} 59. Ke2 {[%clk 0:00:12]}  Rh1 {[%clk 0:00:13]} 60. Rd3 {[%clk 0:00:12]}  Rh2+ {[%clk 0:00:13]} 61. Kf1 {[%clk 0:00:12]}  Rh1+ {[%clk 0:00:14]} 62. Kg2 {[%clk 0:00:12]}  Rb1 {[%clk 0:00:14]} 63. Rg3 {[%clk 0:00:12]}  Rb2+ {[%clk 0:00:15]} 64. Kh3 {[%clk 0:00:12]}  Rb8 {[%clk 0:00:14]} 65. Rg6+ {[%clk 0:00:12]}  Ke5 {[%clk 0:00:15]} 66. Kg3 {[%clk 0:00:12]}  Rb1 {[%clk 0:00:15]} 67. Kg4 {[%clk 0:00:13]}  Rg1+ {[%clk 0:00:15]} 68. Kh5 {[%clk 0:00:13]}  Rh1+ {[%clk 0:00:16]} 69. Kg5 {[%clk 0:00:13]}  Rh2 {[%clk 0:00:16]} 70. Kg4 {[%clk 0:00:10]}  Rg2+ {[%clk 0:00:17]} 71. Kh5 {[%clk 0:00:09]}  Rh2+ {[%clk 0:00:17]} 72. Kg5 {[%clk 0:00:09]}  Rh1 {[%clk 0:00:16]} 73. Bd7 {[%clk 0:00:08]}  Rg1+ {[%clk 0:00:13]} 74. Kh6 {[%clk 0:00:08]}  Rd1 {[%clk 0:00:14]} 75. Be6 {[%clk 0:00:06]}  Rf1 {[%clk 0:00:11]} 76. Kg7 {[%clk 0:00:06]}  Rf2 {[%clk 0:00:11]} 77. Rg3 {[%clk 0:00:06]}  Rf1 {[%clk 0:00:10]} 78. Re3+ {[%clk 0:00:06]}  Kd4 {[%clk 0:00:10]} 79. Re2 {[%clk 0:00:06]}  Rg1+ {[%clk 0:00:08]} 80. Kf7 {[%clk 0:00:06]}  Kd3 {[%clk 0:00:09]} 81. Re5 {[%clk 0:00:06]}  Kd4 {[%clk 0:00:09]} 82. Re2 {[%clk 0:00:05]}  Kd3 {[%clk 0:00:10]} 83. Ra2 {[%clk 0:00:05]}  Ke4 {[%clk 0:00:06]} 84. Ra5 {[%clk 0:00:05]}  Rb1 {[%clk 0:00:05]} 85. f6 {[%clk 0:00:05]}  Rb7+ {[%clk 0:00:06]} 86. Kg6 {[%clk 0:00:05]}  Rb6 {[%clk 0:00:06]} 87. Kg7 {[%clk 0:00:04]}  Rxe6 {[%clk 0:00:05]} 88. f7 {[%clk 0:00:05]}  Re7 {[%clk 0:00:06]} 89. Kf6 {[%clk 0:00:04]}  Ra7 {[%clk 0:00:01]} 90. Rxa7 {[%clk 0:00:04]} 1-0


[Site "https://www.chess.com"]

[Event "Titled Tuesday Blitz August 08 Early 2023"]
[White "Qiao, Cindy"]
[Black "Iskusnyh, Sergei"]
[WhiteFideId "2620243"]
[BlackFideId "4120027"]
[WhiteElo "2400"]
[BlackElo "2629"]
[Result "0-1"]
[Round "4"]
[TimeControl "180+1"]
[Date "2023.08.08"]
[WhiteClock "0:00:00"]
[BlackClock "0:00:26"]
[Board "113"]

1. d4 {[%clk 0:03:00]}  d5 {[%clk 0:02:59]} 2. Bf4 {[%clk 0:03:01]}  Nf6 {[%clk 0:02:58]} 3. e3 {[%clk 0:03:01]}  c5 {[%clk 0:02:57]} 4. Nf3 {[%clk 0:03:01]}  Nc6 {[%clk 0:02:57]} 5. Nbd2 {[%clk 0:02:58]}  cxd4 {[%clk 0:02:54]} 6. exd4 {[%clk 0:02:57]}  Bg4 {[%clk 0:02:54]} 7. c3 {[%clk 0:02:56]}  e6 {[%clk 0:02:54]} 8. h3 {[%clk 0:02:54]}  Bh5 {[%clk 0:02:53]} 9. Bb5 {[%clk 0:02:42]}  Bd6 {[%clk 0:02:51]} 10. Bxd6 {[%clk 0:02:37]}  Qxd6 {[%clk 0:02:52]} 11. O-O {[%clk 0:02:35]}  O-O {[%clk 0:02:52]} 12. Re1 {[%clk 0:02:34]}  Nd7 {[%clk 0:02:39]} 13. Qa4 {[%clk 0:02:24]}  Qc7 {[%clk 0:02:33]} 14. Re3 {[%clk 0:02:01]}  Nb6 {[%clk 0:02:23]} 15. Qc2 {[%clk 0:01:54]}  Rac8 {[%clk 0:02:16]} 16. Rae1 {[%clk 0:01:32]}  Bg6 {[%clk 0:02:05]} 17. Qd1 {[%clk 0:01:30]}  Nd7 {[%clk 0:02:00]} 18. Bd3 {[%clk 0:01:01]}  Bxd3 {[%clk 0:01:45]} 19. Rxd3 {[%clk 0:01:01]}  b5 {[%clk 0:01:45]} 20. b4 {[%clk 0:00:47]}  a5 {[%clk 0:01:42]} 21. a3 {[%clk 0:00:46]}  Nb6 {[%clk 0:01:42]} 22. Qe2 {[%clk 0:00:30]}  Ne7 {[%clk 0:01:34]} 23. Ne5 {[%clk 0:00:25]}  Na4 {[%clk 0:01:31]} 24. Rc1 {[%clk 0:00:18]}  Ng6 {[%clk 0:01:25]} 25. Nxg6 {[%clk 0:00:16]}  hxg6 {[%clk 0:01:26]} 26. Nb3 {[%clk 0:00:16]}  axb4 {[%clk 0:01:17]} 27. axb4 {[%clk 0:00:16]}  Ra8 {[%clk 0:01:07]} 28. Nc5 {[%clk 0:00:16]}  Nb6 {[%clk 0:01:06]} 29. Rg3 {[%clk 0:00:15]}  Nc4 {[%clk 0:01:06]} 30. h4 {[%clk 0:00:15]}  Qf4 {[%clk 0:01:02]} 31. Re1 {[%clk 0:00:12]}  Qxh4 {[%clk 0:00:58]} 32. Qf3 {[%clk 0:00:12]}  Qf6 {[%clk 0:00:53]} 33. Qg4 {[%clk 0:00:12]}  Qf5 {[%clk 0:00:53]} 34. Qh4 {[%clk 0:00:12]}  Ra2 {[%clk 0:00:52]} 35. Rh3 {[%clk 0:00:11]}  f6 {[%clk 0:00:50]} 36. Qh7+ {[%clk 0:00:11]}  Kf7 {[%clk 0:00:50]} 37. Qh4 {[%clk 0:00:12]}  e5 {[%clk 0:00:40]} 38. Rf3 {[%clk 0:00:11]}  Qh5 {[%clk 0:00:38]} 39. Qxh5 {[%clk 0:00:11]}  gxh5 {[%clk 0:00:38]} 40. dxe5 {[%clk 0:00:11]}  Rfa8 {[%clk 0:00:34]} 41. e6+ {[%clk 0:00:12]}  Ke7 {[%clk 0:00:34]} 42. Rg3 {[%clk 0:00:11]}  g5 {[%clk 0:00:33]} 43. Rd3 {[%clk 0:00:10]}  Ra1 {[%clk 0:00:32]} 44. Rxa1 {[%clk 0:00:10]}  Rxa1+ {[%clk 0:00:32]} 45. Kh2 {[%clk 0:00:11]}  Ne5 {[%clk 0:00:31]} 46. Rxd5 {[%clk 0:00:10]}  h4 {[%clk 0:00:30]} 47. g3 {[%clk 0:00:10]}  Nf3+ {[%clk 0:00:28]} 48. Kg2 {[%clk 0:00:10]}  g4 {[%clk 0:00:27]} 49. Rd7+ {[%clk 0:00:00]}  Ke8 {[%clk 0:00:26]} 0-1


[Site "https://www.chess.com"]

[Event "Titled Tuesday Blitz August 08 Early 2023"]
[White "Pham, Le Thao Nguyen"]
[Black "Castella Garcia, Fausto"]
[WhiteFideId "12401226"]
[BlackFideId "3501922"]
[WhiteElo "2628"]
[BlackElo "2399"]
[Result "1-0"]
[Round "4"]
[TimeControl "180+1"]
[Date "2023.08.08"]
[WhiteClock "0:00:35"]
[BlackClock "0:00:24"]
[Board "114"]

1. d4 {[%clk 0:02:57]}  Nf6 {[%clk 0:02:59]} 2. c4 {[%clk 0:02:56]}  e5 {[%clk 0:02:59]} 3. dxe5 {[%clk 0:02:32]}  Ng4 {[%clk 0:02:58]} 4. Nf3 {[%clk 0:02:26]}  Bc5 {[%clk 0:02:57]} 5. e3 {[%clk 0:02:19]}  Nc6 {[%clk 0:02:57]} 6. a3 {[%clk 0:02:17]}  a5 {[%clk 0:02:57]} 7. b3 {[%clk 0:02:08]}  O-O {[%clk 0:02:49]} 8. Bb2 {[%clk 0:02:04]}  Re8 {[%clk 0:02:48]} 9. Nbd2 {[%clk 0:01:48]}  d6 {[%clk 0:02:26]} 10. h3 {[%clk 0:01:37]}  Ngxe5 {[%clk 0:02:24]} 11. Be2 {[%clk 0:01:37]}  Bf5 {[%clk 0:02:14]} 12. O-O {[%clk 0:01:35]}  Qd7 {[%clk 0:02:09]} 13. Kh2 {[%clk 0:01:13]}  h6 {[%clk 0:01:26]} 14. Bc3 {[%clk 0:01:02]}  Rad8 {[%clk 0:01:09]} 15. Nd4 {[%clk 0:00:57]}  Bg6 {[%clk 0:00:59]} 16. f4 {[%clk 0:00:50]}  Bxd4 {[%clk 0:00:40]} 17. exd4 {[%clk 0:00:48]}  Nd3 {[%clk 0:00:39]} 18. Rf3 {[%clk 0:00:37]}  Qf5 {[%clk 0:00:24]} 19. Bxd3 {[%clk 0:00:35]} 1-0


[Site "https://www.chess.com"]

[Event "Titled Tuesday Blitz August 08 Early 2023"]
[White "Sakun, Volodymyr"]
[Black "Legenia, Artem"]
[WhiteFideId "14114062"]
[BlackFideId "14136945"]
[WhiteElo "2625"]
[BlackElo "2394"]
[Result "1-0"]
[Round "4"]
[TimeControl "180+1"]
[Date "2023.08.08"]
[WhiteClock "0:00:32"]
[BlackClock "0:00:10"]
[Board "115"]

1. d4 {[%clk 0:03:00]}  Nf6 {[%clk 0:02:49]} 2. Nf3 {[%clk 0:03:00]}  d6 {[%clk 0:02:48]} 3. Bg5 {[%clk 0:02:58]}  Nbd7 {[%clk 0:02:45]} 4. Nbd2 {[%clk 0:02:54]}  e5 {[%clk 0:02:46]} 5. e4 {[%clk 0:02:53]}  c6 {[%clk 0:02:34]} 6. c3 {[%clk 0:02:51]}  Be7 {[%clk 0:02:32]} 7. Bd3 {[%clk 0:02:51]}  h6 {[%clk 0:02:33]} 8. Bh4 {[%clk 0:02:50]}  O-O {[%clk 0:02:31]} 9. O-O {[%clk 0:02:48]}  b6 {[%clk 0:01:22]} 10. Re1 {[%clk 0:02:43]}  Bb7 {[%clk 0:01:22]} 11. Bg3 {[%clk 0:02:32]}  Nh5 {[%clk 0:01:05]} 12. Nxe5 {[%clk 0:02:12]}  Nxg3 {[%clk 0:01:05]} 13. Nxd7 {[%clk 0:02:12]}  Qxd7 {[%clk 0:00:59]} 14. hxg3 {[%clk 0:02:12]}  c5 {[%clk 0:01:00]} 15. d5 {[%clk 0:02:11]}  f5 {[%clk 0:00:59]} 16. Qh5 {[%clk 0:01:45]}  f4 {[%clk 0:00:56]} 17. gxf4 {[%clk 0:01:31]}  Rxf4 {[%clk 0:00:56]} 18. g3 {[%clk 0:01:32]}  Rf7 {[%clk 0:00:51]} 19. Be2 {[%clk 0:01:30]}  Raf8 {[%clk 0:00:50]} 20. Bg4 {[%clk 0:01:30]}  Qe8 {[%clk 0:00:45]} 21. Be6 {[%clk 0:01:29]}  Bc8 {[%clk 0:00:46]} 22. Bxf7+ {[%clk 0:01:27]}  Rxf7 {[%clk 0:00:46]} 23. f4 {[%clk 0:01:25]}  Kh7 {[%clk 0:00:36]} 24. Nf3 {[%clk 0:01:22]}  g6 {[%clk 0:00:34]} 25. Qh2 {[%clk 0:01:18]}  Bg4 {[%clk 0:00:33]} 26. Kg2 {[%clk 0:01:02]}  g5 {[%clk 0:00:28]} 27. f5 {[%clk 0:00:59]}  Bf6 {[%clk 0:00:27]} 28. Kf2 {[%clk 0:00:56]}  Bxf3 {[%clk 0:00:26]} 29. Kxf3 {[%clk 0:00:56]}  Qe5 {[%clk 0:00:25]} 30. Qh5 {[%clk 0:00:52]}  Rg7 {[%clk 0:00:25]} 31. Qg4 {[%clk 0:00:47]}  b5 {[%clk 0:00:25]} 32. Rh1 {[%clk 0:00:45]}  Re7 {[%clk 0:00:22]} 33. Rae1 {[%clk 0:00:42]}  b4 {[%clk 0:00:22]} 34. Qh5 {[%clk 0:00:40]}  g4+ {[%clk 0:00:23]} 35. Kg2 {[%clk 0:00:37]}  Bg7 {[%clk 0:00:17]} 36. Qg6+ {[%clk 0:00:37]}  Kg8 {[%clk 0:00:16]} 37. Rxh6 {[%clk 0:00:35]}  bxc3 {[%clk 0:00:16]} 38. f6 {[%clk 0:00:33]}  Qxf6 {[%clk 0:00:10]} 39. Qxf6 {[%clk 0:00:32]}  Bxf6 {[%clk 0:00:11]} 40. Rxf6 {[%clk 0:00:32]}  cxb2 {[%clk 0:00:11]} 41. Rb1 {[%clk 0:00:32]}  Rxe4 {[%clk 0:00:10]} 42. Rxb2 {[%clk 0:00:32]} 1-0


[Site "https://www.chess.com"]

[Event "Titled Tuesday Blitz August 08 Early 2023"]
[White "amanjazu"]
[Black "Domingo Nunez, Ruben"]
[BlackFideId "22245570"]
[WhiteElo "2335"]
[BlackElo "2617"]
[Result "0-1"]
[Round "4"]
[TimeControl "180+1"]
[Date "2023.08.08"]
[WhiteClock "0:00:00"]
[BlackClock "0:00:46"]
[Board "121"]

1. g3 {[%clk 0:03:00]}  g6 {[%clk 0:03:00]} 2. f4 {[%clk 0:03:01]}  Bg7 {[%clk 0:03:00]} 3. Nf3 {[%clk 0:03:02]}  d6 {[%clk 0:03:00]} 4. Bg2 {[%clk 0:03:02]}  Nd7 {[%clk 0:03:01]} 5. O-O {[%clk 0:03:03]}  e5 {[%clk 0:03:02]} 6. d3 {[%clk 0:02:54]}  Ngf6 {[%clk 0:03:00]} 7. Nc3 {[%clk 0:02:53]}  O-O {[%clk 0:02:53]} 8. e4 {[%clk 0:02:53]}  c6 {[%clk 0:02:53]} 9. h3 {[%clk 0:02:51]}  Nh5 {[%clk 0:02:43]} 10. Kh2 {[%clk 0:02:50]}  exf4 {[%clk 0:02:41]} 11. gxf4 {[%clk 0:02:37]}  f5 {[%clk 0:02:41]} 12. Ng5 {[%clk 0:02:24]}  Nc5 {[%clk 0:02:28]} 13. Bf3 {[%clk 0:01:50]}  Nxf4 {[%clk 0:01:55]} 14. Bxf4 {[%clk 0:01:38]}  fxe4 {[%clk 0:01:55]} 15. Ngxe4 {[%clk 0:00:35]}  Rxf4 {[%clk 0:01:48]} 16. Nxc5 {[%clk 0:00:20]}  Be5 {[%clk 0:01:37]} 17. Kh1 {[%clk 0:00:12]}  Qh4 {[%clk 0:01:10]} 18. Bg2 {[%clk 0:00:11]}  Bxh3 {[%clk 0:01:08]} 19. Rxf4 {[%clk 0:00:06]}  Bxf4 {[%clk 0:00:51]} 20. Qf3 {[%clk 0:00:00]}  Bg4+ {[%clk 0:00:46]} 0-1


[Site "https://www.chess.com"]

[Event "Titled Tuesday Blitz August 08 Early 2023"]
[White "Jodorcovsky Werjivker, Paulo"]
[Black "Tsvetkov, Andrey"]
[WhiteFideId "3700305"]
[BlackFideId "34139360"]
[WhiteElo "2194"]
[BlackElo "2607"]
[Result "0-1"]
[Round "4"]
[TimeControl "180+1"]
[Date "2023.08.08"]
[WhiteClock "0:00:15"]
[BlackClock "0:00:11"]
[Board "124"]

1. d4 {[%clk 0:02:57]}  Nf6 {[%clk 0:02:59]} 2. c4 {[%clk 0:02:55]}  e6 {[%clk 0:02:59]} 3. Nc3 {[%clk 0:02:55]}  Bb4 {[%clk 0:02:59]} 4. f3 {[%clk 0:02:55]}  d5 {[%clk 0:02:48]} 5. a3 {[%clk 0:02:54]}  Be7 {[%clk 0:02:48]} 6. e4 {[%clk 0:02:54]}  dxe4 {[%clk 0:02:49]} 7. fxe4 {[%clk 0:02:54]}  c5 {[%clk 0:02:50]} 8. d5 {[%clk 0:02:54]}  exd5 {[%clk 0:02:51]} 9. exd5 {[%clk 0:02:55]}  O-O {[%clk 0:02:51]} 10. Nf3 {[%clk 0:02:54]}  a6 {[%clk 0:02:51]} 11. Be2 {[%clk 0:02:54]}  Bd6 {[%clk 0:02:52]} 12. O-O {[%clk 0:02:51]}  Nbd7 {[%clk 0:02:52]} 13. Qc2 {[%clk 0:02:46]}  Qc7 {[%clk 0:02:52]} 14. Bg5 {[%clk 0:02:41]}  h6 {[%clk 0:02:50]} 15. Bd2 {[%clk 0:02:33]}  Ng4 {[%clk 0:02:48]} 16. h3 {[%clk 0:02:16]}  Nge5 {[%clk 0:02:48]} 17. Rae1 {[%clk 0:02:12]}  Nxf3+ {[%clk 0:02:41]} 18. Bxf3 {[%clk 0:02:11]}  Be5 {[%clk 0:02:42]} 19. Be4 {[%clk 0:02:03]}  Nf6 {[%clk 0:02:27]} 20. Bf3 {[%clk 0:01:56]}  Bd4+ {[%clk 0:02:17]} 21. Kh1 {[%clk 0:01:49]}  Bd7 {[%clk 0:01:45]} 22. Ne4 {[%clk 0:01:39]}  Rae8 {[%clk 0:01:39]} 23. Nxf6+ {[%clk 0:01:38]}  Bxf6 {[%clk 0:01:40]} 24. Qc1 {[%clk 0:01:31]}  Be5 {[%clk 0:01:21]} 25. b4 {[%clk 0:00:55]}  b6 {[%clk 0:01:17]} 26. Be3 {[%clk 0:00:50]}  Bg3 {[%clk 0:01:09]} 27. Bf2 {[%clk 0:00:50]}  Bxf2 {[%clk 0:01:07]} 28. Rxf2 {[%clk 0:00:50]}  Qg3 {[%clk 0:01:07]} 29. Rxe8 {[%clk 0:00:45]}  Rxe8 {[%clk 0:01:08]} 30. Re2 {[%clk 0:00:40]}  Rc8 {[%clk 0:00:51]} 31. Qe1 {[%clk 0:00:39]}  Qxe1+ {[%clk 0:00:50]} 32. Rxe1 {[%clk 0:00:39]}  cxb4 {[%clk 0:00:51]} 33. axb4 {[%clk 0:00:39]}  Rxc4 {[%clk 0:00:49]} 34. Ra1 {[%clk 0:00:39]}  Bb5 {[%clk 0:00:46]} 35. d6 {[%clk 0:00:38]}  Rd4 {[%clk 0:00:40]} 36. Bb7 {[%clk 0:00:37]}  Rxd6 {[%clk 0:00:33]} 37. Bxa6 {[%clk 0:00:36]}  Bc6 {[%clk 0:00:33]} 38. Bc4 {[%clk 0:00:30]}  Rd4 {[%clk 0:00:30]} 39. Rc1 {[%clk 0:00:30]}  Be4 {[%clk 0:00:25]} 40. Kg1 {[%clk 0:00:26]}  Rd2 {[%clk 0:00:24]} 41. Bf1 {[%clk 0:00:25]}  Rb2 {[%clk 0:00:23]} 42. b5 {[%clk 0:00:26]}  f5 {[%clk 0:00:22]} 43. Rc8+ {[%clk 0:00:26]}  Kh7 {[%clk 0:00:21]} 44. Rb8 {[%clk 0:00:26]}  Rb1 {[%clk 0:00:22]} 45. Kf2 {[%clk 0:00:26]}  Rb2+ {[%clk 0:00:21]} 46. Kg1 {[%clk 0:00:26]}  Kg6 {[%clk 0:00:13]} 47. Rxb6+ {[%clk 0:00:26]}  Kg5 {[%clk 0:00:14]} 48. Rd6 {[%clk 0:00:23]}  Kf4 {[%clk 0:00:13]} 49. Rd1 {[%clk 0:00:20]}  Kg3 {[%clk 0:00:12]} 50. Re1 {[%clk 0:00:20]}  Bxg2 {[%clk 0:00:11]} 51. Bxg2 {[%clk 0:00:19]}  Rxg2+ {[%clk 0:00:12]} 52. Kh1 {[%clk 0:00:20]}  Rh2+ {[%clk 0:00:12]} 53. Kg1 {[%clk 0:00:20]}  Rg2+ {[%clk 0:00:08]} 54. Kh1 {[%clk 0:00:20]}  f4 {[%clk 0:00:08]} 55. Rb1 {[%clk 0:00:18]}  Rh2+ {[%clk 0:00:05]} 56. Kg1 {[%clk 0:00:18]}  Rg2+ {[%clk 0:00:06]} 57. Kh1 {[%clk 0:00:18]}  f3 {[%clk 0:00:06]} 58. b6 {[%clk 0:00:18]}  Rh2+ {[%clk 0:00:07]} 59. Kg1 {[%clk 0:00:16]}  f2+ {[%clk 0:00:08]} 60. Kf1 {[%clk 0:00:16]}  Rh1+ {[%clk 0:00:09]} 61. Ke2 {[%clk 0:00:17]}  Rxb1 {[%clk 0:00:10]} 62. b7 {[%clk 0:00:15]}  Rxb7 {[%clk 0:00:11]} 0-1


[Site "https://www.chess.com"]